[Event "*** SCC Grand Prix: Titled Tuesday Blitz"]
[Site "Chess.com"]
[Date "2020.09.29"]
[Round "9"]
[White "ajdemipopushi"]
[Black "mortngabriel"]
[Result "1-0"]
[WhiteElo "2364"]
[BlackElo "2447"]
[TimeControl "180+1"]
[EndTime "11:44:58 PDT"]
[Termination "ajdemipopushi won by resignation"]

1. Nf3 {[%clk 0:03:00.9]} 1... f5 {[%clk 0:02:48.2]} 2. g3 {[%clk 0:03:00.3]}
2... d6 {[%clk 0:02:48]} 3. d4 {[%clk 0:02:59.6]} 3... Nf6 {[%clk 0:02:48.2]} 4.
Bg2 {[%clk 0:03:00]} 4... g6 {[%clk 0:02:43.8]} 5. c4 {[%clk 0:02:59.8]} 5...
Bg7 {[%clk 0:02:44.3]} 6. O-O {[%clk 0:03:00.7]} 6... O-O {[%clk 0:02:45]} 7. d5
{[%clk 0:02:58.9]} 7... c6 {[%clk 0:02:39.6]} 8. Nc3 {[%clk 0:02:58.4]} 8... Qc7
{[%clk 0:02:38.1]} 9. Nd4 {[%clk 0:02:42]} 9... a6 {[%clk 0:02:19.6]} 10. Bf4
{[%clk 0:02:37.6]} 10... c5 {[%clk 0:02:17.7]} 11. Ne6 {[%clk 0:02:28.9]} 11...
Bxe6 {[%clk 0:02:15.9]} 12. dxe6 {[%clk 0:02:28.8]} 12... Nc6 {[%clk 0:02:11.1]}
13. Rc1 {[%clk 0:02:09.7]} 13... Rab8 {[%clk 0:02:08.3]} 14. Re1 {[%clk
0:01:59.1]} 14... Qc8 {[%clk 0:02:05.5]} 15. e4 {[%clk 0:01:49.6]} 15... Qxe6
{[%clk 0:02:04.9]} 16. Bh3 {[%clk 0:01:33.2]} 16... Nd4 {[%clk 0:01:49.3]} 17.
exf5 {[%clk 0:01:30.4]} 17... Qxe1+ {[%clk 0:01:48.8]} 18. Qxe1 {[%clk
0:01:26.7]} 18... Nf3+ {[%clk 0:01:49.7]} 19. Kg2 {[%clk 0:01:19.7]} 19... Nxe1+
{[%clk 0:01:50.6]} 20. Rxe1 {[%clk 0:01:19.6]} 20... gxf5 {[%clk 0:01:35.5]} 21.
Rxe7 {[%clk 0:01:16.9]} 21... Ne4 {[%clk 0:01:00.8]} 22. Nxe4 {[%clk 0:01:00.8]}
22... fxe4 {[%clk 0:01:01.7]} 23. Bxd6 {[%clk 0:01:00.9]} 23... Rbd8 {[%clk
0:00:57]} 24. Bxc5 {[%clk 0:00:58]} 24... Bxb2 {[%clk 0:00:51.9]} 25. Rxb7
{[%clk 0:00:56]} 25... Bd4 {[%clk 0:00:42.8]} 26. Be6+ {[%clk 0:00:46.8]} 26...
Kh8 {[%clk 0:00:41.6]} 27. Bxf8 {[%clk 0:00:42]} 27... Rxf8 {[%clk 0:00:42.5]}
28. Rf7 {[%clk 0:00:41.7]} 28... Rxf7 {[%clk 0:00:41.6]} 29. Bxf7 {[%clk
0:00:41.8]} 29... Kg7 {[%clk 0:00:42.5]} 30. Bd5 {[%clk 0:00:41.6]} 30... e3
{[%clk 0:00:41.3]} 31. fxe3 {[%clk 0:00:41.6]} 31... Bxe3 {[%clk 0:00:42.2]} 32.
Kf3 {[%clk 0:00:41.2]} 32... Bg1 {[%clk 0:00:41.7]} 33. h4 {[%clk 0:00:40.8]}
33... Kf6 {[%clk 0:00:42.1]} 34. g4 {[%clk 0:00:40.9]} 34... h6 {[%clk
0:00:42.1]} 35. Kf4 {[%clk 0:00:37.3]} 35... Bh2+ {[%clk 0:00:35.3]} 36. Ke4
{[%clk 0:00:37.1]} 36... Bg3 {[%clk 0:00:35.4]} 37. Bb7 {[%clk 0:00:34.4]} 37...
a5 {[%clk 0:00:29.9]} 38. Kd5 {[%clk 0:00:31.5]} 38... Bxh4 {[%clk 0:00:22.6]}
39. c5 {[%clk 0:00:27.3]} 39... Ke7 {[%clk 0:00:22.3]} 40. Kc6 {[%clk
0:00:23.5]} 40... Bf2 {[%clk 0:00:18.6]} 41. Kb5 {[%clk 0:00:23.3]} 41... a4
{[%clk 0:00:17.7]} 42. c6 {[%clk 0:00:21.1]} 42... Kd6 {[%clk 0:00:15.7]} 43.
Kxa4 {[%clk 0:00:20.9]} 43... Bg3 {[%clk 0:00:09.2]} 44. Kb5 {[%clk 0:00:20.8]}
44... Kc7 {[%clk 0:00:08.3]} 45. a4 {[%clk 0:00:20.7]} 45... Bf2 {[%clk
0:00:08.3]} 46. a5 {[%clk 0:00:20.9]} 46... Be3 {[%clk 0:00:08.7]} 47. a6 {[%clk
0:00:20.8]} 47... Ba7 {[%clk 0:00:08.4]} 48. Kc4 {[%clk 0:00:21]} 48... Kd6
{[%clk 0:00:08.6]} 49. Kd3 {[%clk 0:00:21.2]} 49... Bb6 {[%clk 0:00:07.1]} 50.
Ke4 {[%clk 0:00:20.9]} 50... Ba7 {[%clk 0:00:07.2]} 51. Kf5 {[%clk 0:00:21]}
51... Bb6 {[%clk 0:00:06.6]} 52. Kg6 {[%clk 0:00:21.3]} 52... Be3 {[%clk
0:00:07.5]} 53. a7 {[%clk 0:00:20.9]} 53... Bxa7 {[%clk 0:00:07.1]} 54. Kxh6
{[%clk 0:00:21.2]} 54... Ke7 {[%clk 0:00:06.5]} 55. g5 {[%clk 0:00:20.6]} 55...
Kd8 {[%clk 0:00:04.2]} 56. Kh7 {[%clk 0:00:19.9]} 56... Be3 {[%clk 0:00:05.1]}
57. g6 {[%clk 0:00:20.1]} 57... Bd4 {[%clk 0:00:06]} 58. g7 {[%clk 0:00:20.5]}
58... Bxg7 {[%clk 0:00:06.9]} 59. Kxg7 {[%clk 0:00:20.9]} 1-0

[Event "*** SCC Grand Prix: Titled Tuesday Blitz"]
[Site "Chess.com"]
[Date "2020.09.29"]
[Round "9"]
[White "Sethu0025"]
[Black "maximnovik"]
[Result "1/2-1/2"]
[WhiteElo "2755"]
[BlackElo "2540"]
[TimeControl "180+1"]
[EndTime "11:45:02 PDT"]
[Termination "Game drawn by repetition"]

1. d4 {[%clk 0:03:00.9]} 1... Nf6 {[%clk 0:02:58.1]} 2. c4 {[%clk 0:03:01.2]}
2... g6 {[%clk 0:02:58.6]} 3. Nc3 {[%clk 0:03:01.5]} 3... d5 {[%clk 0:02:59.1]}
4. cxd5 {[%clk 0:03:02.4]} 4... Nxd5 {[%clk 0:02:59.4]} 5. e4 {[%clk 0:03:03.3]}
5... Nxc3 {[%clk 0:02:59.9]} 6. bxc3 {[%clk 0:03:04.2]} 6... c5 {[%clk
0:03:00.3]} 7. Be3 {[%clk 0:03:04.8]} 7... Bg7 {[%clk 0:03:00.5]} 8. Nf3 {[%clk
0:03:03.7]} 8... Qa5 {[%clk 0:02:59.7]} 9. Qd2 {[%clk 0:03:04.2]} 9... Nc6
{[%clk 0:02:58.8]} 10. Rb1 {[%clk 0:02:59]} 10... a6 {[%clk 0:02:58.9]} 11. Rc1
{[%clk 0:02:58.6]} 11... cxd4 {[%clk 0:02:58.6]} 12. cxd4 {[%clk 0:02:58.9]}
12... Qxd2+ {[%clk 0:02:59]} 13. Kxd2 {[%clk 0:02:59.5]} 13... e6 {[%clk
0:02:59.4]} 14. Bd3 {[%clk 0:02:53.9]} 14... O-O {[%clk 0:02:59]} 15. e5 {[%clk
0:02:54.2]} 15... Bd7 {[%clk 0:02:55.9]} 16. h4 {[%clk 0:02:53.3]} 16... Rfc8
{[%clk 0:02:51.5]} 17. h5 {[%clk 0:02:52.1]} 17... Nb4 {[%clk 0:02:48.9]} 18.
Bb1 {[%clk 0:02:44.6]} 18... Rxc1 {[%clk 0:02:41.9]} 19. Rxc1 {[%clk 0:02:42.1]}
19... Bc6 {[%clk 0:02:35]} 20. Bg5 {[%clk 0:02:18.6]} 20... h6 {[%clk
0:02:19.2]} 21. Be7 {[%clk 0:02:13.7]} 21... Nd5 {[%clk 0:02:19.2]} 22. Bd6
{[%clk 0:02:13.6]} 22... g5 {[%clk 0:02:18.5]} 23. Be4 {[%clk 0:02:09.6]} 23...
Bf8 {[%clk 0:02:09.6]} 24. Bxd5 {[%clk 0:01:58.9]} 24... Bxd5 {[%clk 0:02:09.6]}
25. Rc7 {[%clk 0:01:59.1]} 25... Bxa2 {[%clk 0:02:03.5]} 26. Rxb7 {[%clk
0:01:50.7]} 26... Bd5 {[%clk 0:02:01.5]} 27. Rb1 {[%clk 0:01:47.6]} 27... a5
{[%clk 0:01:42.2]} 28. Ra1 {[%clk 0:01:42.6]} 28... a4 {[%clk 0:01:33.7]} 29.
Ra3 {[%clk 0:01:42.1]} 29... Bb3 {[%clk 0:01:06.2]} 30. Ke3 {[%clk 0:01:39.4]}
30... Bxd6 {[%clk 0:01:04.1]} 31. exd6 {[%clk 0:01:38.7]} 31... Rd8 {[%clk
0:01:04.6]} 32. Nd2 {[%clk 0:01:38.6]} 32... Bd1 {[%clk 0:00:56.3]} 33. Ne4
{[%clk 0:00:52.6]} 33... Kg7 {[%clk 0:00:53]} 34. Nc3 {[%clk 0:00:50.3]} 34...
Bb3 {[%clk 0:00:51.9]} 35. Nxa4 {[%clk 0:00:49.3]} 35... Bxa4 {[%clk 0:00:51.3]}
36. Rxa4 {[%clk 0:00:50.2]} 36... Rxd6 {[%clk 0:00:51.4]} 37. g4 {[%clk
0:00:47.6]} 37... Rb6 {[%clk 0:00:50.7]} 38. Ra3 {[%clk 0:00:46.6]} 38... Rb1
{[%clk 0:00:49.9]} 39. f3 {[%clk 0:00:46.4]} 39... Rd1 {[%clk 0:00:45.5]} 40.
Ra7 {[%clk 0:00:43.5]} 40... Kf6 {[%clk 0:00:43.6]} 41. Ra6 {[%clk 0:00:42.2]}
41... Re1+ {[%clk 0:00:40.4]} 42. Kd3 {[%clk 0:00:42.4]} 42... Rb1 {[%clk
0:00:37.8]} 43. Ra3 {[%clk 0:00:41.6]} 43... Kg7 {[%clk 0:00:33.7]} 44. Ke3
{[%clk 0:00:40.8]} 44... Rh1 {[%clk 0:00:26.6]} 45. Rd3 {[%clk 0:00:40.5]} 45...
f5 {[%clk 0:00:24.5]} 46. gxf5 {[%clk 0:00:37.7]} 46... exf5 {[%clk 0:00:24.4]}
47. d5 {[%clk 0:00:38.4]} 47... Kf7 {[%clk 0:00:24.8]} 48. Kd4 {[%clk
0:00:32.9]} 48... Rxh5 {[%clk 0:00:22.8]} 49. Ke5 {[%clk 0:00:33.1]} 49... f4
{[%clk 0:00:20.6]} 50. d6 {[%clk 0:00:31.5]} 50... Ke8 {[%clk 0:00:20.6]} 51.
Ra3 {[%clk 0:00:23.3]} 51... Rh1 {[%clk 0:00:16.6]} 52. Ra8+ {[%clk 0:00:22.4]}
52... Kd7 {[%clk 0:00:15.2]} 53. Ra7+ {[%clk 0:00:22.8]} 53... Kd8 {[%clk
0:00:15.3]} 54. Rh7 {[%clk 0:00:20]} 54... Re1+ {[%clk 0:00:12.5]} 55. Kf5
{[%clk 0:00:19.9]} 55... Rh1 {[%clk 0:00:10]} 56. Ke6 {[%clk 0:00:19.1]} 56...
Re1+ {[%clk 0:00:09.8]} 57. Kf5 {[%clk 0:00:18.4]} 57... Rh1 {[%clk 0:00:09.8]}
58. Ke5 {[%clk 0:00:17.7]} 58... Re1+ {[%clk 0:00:09.6]} 59. Kd5 {[%clk
0:00:18.1]} 59... Rd1+ {[%clk 0:00:09.6]} 60. Kc5 {[%clk 0:00:17.4]} 60... Rd3
{[%clk 0:00:08.7]} 61. Rh8+ {[%clk 0:00:14.6]} 61... Kd7 {[%clk 0:00:08.1]} 62.
Rh7+ {[%clk 0:00:15]} 62... Kd8 {[%clk 0:00:08.3]} 63. Rh8+ {[%clk 0:00:15.5]}
63... Kd7 {[%clk 0:00:08.4]} 64. Rh7+ {[%clk 0:00:16]} 64... Kd8 {[%clk
0:00:08.6]} 1/2-1/2

[Event "*** SCC Grand Prix: Titled Tuesday Blitz"]
[Site "Chess.com"]
[Date "2020.09.29"]
[Round "9"]
[White "chessfrendz"]
[Black "ehrenfeld"]
[Result "1-0"]
[WhiteElo "2370"]
[BlackElo "2515"]
[TimeControl "180+1"]
[EndTime "11:45:02 PDT"]
[Termination "chessfrendz won on time"]

1. d4 {[%clk 0:03:00.9]} 1... Nf6 {[%clk 0:02:58.4]} 2. c4 {[%clk 0:03:00.6]}
2... e6 {[%clk 0:02:58.4]} 3. Nc3 {[%clk 0:03:00.6]} 3... Bb4 {[%clk 0:02:58.4]}
4. e3 {[%clk 0:03:00.5]} 4... b6 {[%clk 0:02:58.1]} 5. Ne2 {[%clk 0:02:58.9]}
5... Ba6 {[%clk 0:02:57.3]} 6. a3 {[%clk 0:02:57.6]} 6... Bxc3+ {[%clk
0:02:57.3]} 7. Nxc3 {[%clk 0:02:57.4]} 7... d5 {[%clk 0:02:57.3]} 8. b3 {[%clk
0:02:43.6]} 8... O-O {[%clk 0:02:55.3]} 9. Bd3 {[%clk 0:02:36.5]} 9... dxc4
{[%clk 0:02:37.1]} 10. bxc4 {[%clk 0:02:35]} 10... Nc6 {[%clk 0:02:36.8]} 11.
O-O {[%clk 0:02:32.3]} 11... Na5 {[%clk 0:02:36.3]} 12. Qe2 {[%clk 0:02:31.3]}
12... c5 {[%clk 0:02:25.3]} 13. d5 {[%clk 0:02:07.6]} 13... exd5 {[%clk
0:01:58.5]} 14. cxd5 {[%clk 0:01:54.9]} 14... Bxd3 {[%clk 0:01:42.8]} 15. Qxd3
{[%clk 0:01:54.1]} 15... c4 {[%clk 0:01:41.2]} 16. Qd4 {[%clk 0:01:52.8]} 16...
Nb3 {[%clk 0:01:40.4]} 17. Qxc4 {[%clk 0:01:48.4]} 17... Nxa1 {[%clk 0:01:40.1]}
18. Bb2 {[%clk 0:01:45.2]} 18... Rc8 {[%clk 0:01:30.6]} 19. Qa2 {[%clk
0:01:37.1]} 19... Nc2 {[%clk 0:01:25.1]} 20. Rd1 {[%clk 0:01:00.6]} 20... Qc7
{[%clk 0:00:59.4]} 21. h3 {[%clk 0:00:47.5]} 21... Qc4 {[%clk 0:00:49.1]} 22.
Qxc4 {[%clk 0:00:31.3]} 22... Rxc4 {[%clk 0:00:48.6]} 23. Nb5 {[%clk 0:00:24.7]}
23... Rc5 {[%clk 0:00:41.1]} 24. Nxa7 {[%clk 0:00:20]} 24... Rxd5 {[%clk
0:00:39.5]} 25. Rc1 {[%clk 0:00:17.6]} 25... Rd2 {[%clk 0:00:38.8]} 26. Bc3
{[%clk 0:00:16.1]} 26... Rd3 {[%clk 0:00:32.4]} 27. Rxc2 {[%clk 0:00:15.3]}
27... Ne4 {[%clk 0:00:29.2]} 28. Bb4 {[%clk 0:00:13.8]} 28... Rfd8 {[%clk
0:00:27.2]} 29. Nb5 {[%clk 0:00:12.9]} 29... Rd1+ {[%clk 0:00:25.5]} 30. Kh2
{[%clk 0:00:12.8]} 30... h5 {[%clk 0:00:25.6]} 31. Nd4 {[%clk 0:00:12.3]} 31...
Rf1 {[%clk 0:00:22.5]} 32. Nc6 {[%clk 0:00:06.6]} 32... Rdd1 {[%clk 0:00:20.6]}
33. Ne7+ {[%clk 0:00:05.6]} 33... Kh7 {[%clk 0:00:20.4]} 34. g4 {[%clk
0:00:05.3]} 34... h4 {[%clk 0:00:18.3]} 35. Kg2 {[%clk 0:00:04.9]} 35... Ng5
{[%clk 0:00:17.9]} 36. f4 {[%clk 0:00:02.9]} 36... Rg1+ {[%clk 0:00:17.3]} 37.
Kf2 {[%clk 0:00:03]} 37... Rdf1+ {[%clk 0:00:17.4]} 38. Ke2 {[%clk 0:00:03.7]}
38... Re1+ {[%clk 0:00:16.4]} 39. Kd3 {[%clk 0:00:03.9]} 39... Nf3 {[%clk
0:00:15.8]} 40. Rc8 {[%clk 0:00:03.1]} 40... Rd1+ {[%clk 0:00:14.7]} 41. Ke4
{[%clk 0:00:03]} 41... Nd2+ {[%clk 0:00:14.2]} 42. Ke5 {[%clk 0:00:02.8]} 42...
Nf3+ {[%clk 0:00:13.3]} 43. Ke4 {[%clk 0:00:02.9]} 43... f6 {[%clk 0:00:13.3]}
44. Kxf3 {[%clk 0:00:02.3]} 44... Rg3+ {[%clk 0:00:11.7]} 45. Ke4 {[%clk
0:00:03.2]} 45... Rxh3 {[%clk 0:00:12]} 46. Nf5 {[%clk 0:00:02.9]} 46... Rhh1
{[%clk 0:00:10.6]} 47. Rc7 {[%clk 0:00:03.2]} 47... h3 {[%clk 0:00:10.2]} 48.
Rxg7+ {[%clk 0:00:04.1]} 48... Kh8 {[%clk 0:00:10.2]} 49. Rg6 {[%clk 0:00:04.1]}
49... h2 {[%clk 0:00:09.8]} 50. Rh6+ {[%clk 0:00:04.6]} 50... Kg8 {[%clk
0:00:09.9]} 51. Bc3 {[%clk 0:00:04.6]} 51... Rdg1 {[%clk 0:00:09.1]} 52. Bxf6
{[%clk 0:00:04.8]} 52... Rg2 {[%clk 0:00:08.7]} 53. Rh8+ {[%clk 0:00:03.8]}
53... Kf7 {[%clk 0:00:08.2]} 54. g5 {[%clk 0:00:04.1]} 54... Re2 {[%clk
0:00:07]} 55. Rh7+ {[%clk 0:00:05]} 55... Ke6 {[%clk 0:00:06.8]} 56. Nd4+ {[%clk
0:00:04.3]} 56... Kd6 {[%clk 0:00:06]} 57. Nxe2 {[%clk 0:00:05.2]} 1-0

[Event "*** SCC Grand Prix: Titled Tuesday Blitz"]
[Site "Chess.com"]
[Date "2020.09.29"]
[Round "9"]
[White "GiantThresher"]
[Black "Savagelittlemole"]
[Result "1-0"]
[WhiteElo "2776"]
[BlackElo "2630"]
[TimeControl "180+1"]
[EndTime "11:45:05 PDT"]
[Termination "GiantThresher won by checkmate"]

1. e4 {[%clk 0:02:59.3]} 1... c5 {[%clk 0:02:59.6]} 2. Nc3 {[%clk 0:02:59.1]}
2... a6 {[%clk 0:02:58]} 3. Nf3 {[%clk 0:02:58.8]} 3... d6 {[%clk 0:02:56.2]} 4.
d4 {[%clk 0:02:59.1]} 4... cxd4 {[%clk 0:02:57.1]} 5. Nxd4 {[%clk 0:02:59.9]}
5... Nf6 {[%clk 0:02:57.6]} 6. h3 {[%clk 0:03:00.2]} 6... e5 {[%clk 0:02:57.4]}
7. Nb3 {[%clk 0:03:00]} 7... Be7 {[%clk 0:02:55.6]} 8. Be3 {[%clk 0:02:43.3]}
8... O-O {[%clk 0:02:51]} 9. g4 {[%clk 0:02:35.5]} 9... Be6 {[%clk 0:02:50.6]}
10. g5 {[%clk 0:02:24.6]} 10... Nfd7 {[%clk 0:02:45.7]} 11. h4 {[%clk
0:02:22.9]} 11... Nc5 {[%clk 0:02:40.5]} 12. Nxc5 {[%clk 0:02:15.2]} 12... dxc5
{[%clk 0:02:41.4]} 13. Qxd8 {[%clk 0:02:15.7]} 13... Rxd8 {[%clk 0:02:40.2]} 14.
Bh3 {[%clk 0:02:16.6]} 14... Bxh3 {[%clk 0:02:34.7]} 15. Rxh3 {[%clk 0:02:17.5]}
15... Nc6 {[%clk 0:02:28.7]} 16. Nd5 {[%clk 0:02:17.6]} 16... Bf8 {[%clk
0:02:26.5]} 17. c3 {[%clk 0:02:05.7]} 17... b5 {[%clk 0:02:19.8]} 18. O-O-O
{[%clk 0:02:03.6]} 18... c4 {[%clk 0:02:15.1]} 19. Rd2 {[%clk 0:01:50.8]} 19...
b4 {[%clk 0:02:06.2]} 20. Nb6 {[%clk 0:01:11.5]} 20... bxc3 {[%clk 0:01:56.1]}
21. bxc3 {[%clk 0:01:08.3]} 21... Rxd2 {[%clk 0:01:28.2]} 22. Bxd2 {[%clk
0:01:09.2]} 22... Rb8 {[%clk 0:01:23.4]} 23. Nxc4 {[%clk 0:01:09.3]} 23... Rc8
{[%clk 0:01:22.2]} 24. Nb6 {[%clk 0:01:08.5]} 24... Rb8 {[%clk 0:01:20.5]} 25.
Be3 {[%clk 0:00:53.5]} 25... Ba3+ {[%clk 0:01:18.7]} 26. Kc2 {[%clk 0:00:53.3]}
26... Na5 {[%clk 0:00:56.4]} 27. Rh1 {[%clk 0:00:51.5]} 27... Rd8 {[%clk
0:00:54.8]} 28. Rd1 {[%clk 0:00:50.8]} 28... Rxd1 {[%clk 0:00:54.7]} 29. Kxd1
{[%clk 0:00:51.7]} 29... f6 {[%clk 0:00:48.2]} 30. gxf6 {[%clk 0:00:50]} 30...
gxf6 {[%clk 0:00:49.1]} 31. h5 {[%clk 0:00:50.5]} 31... Kf7 {[%clk 0:00:48.7]}
32. Kc2 {[%clk 0:00:50.6]} 32... Ke6 {[%clk 0:00:47.5]} 33. Kd3 {[%clk
0:00:44.6]} 33... Kd6 {[%clk 0:00:36.5]} 34. Nc4+ {[%clk 0:00:42.7]} 34... Nxc4
{[%clk 0:00:36.6]} 35. Kxc4 {[%clk 0:00:43.6]} 35... Kc6 {[%clk 0:00:37.1]} 36.
f3 {[%clk 0:00:41.1]} 36... Bf8 {[%clk 0:00:36.3]} 37. Bc1 {[%clk 0:00:37.4]}
37... Bg7 {[%clk 0:00:29.6]} 38. Ba3 {[%clk 0:00:36.6]} 38... Bh6 {[%clk
0:00:29.7]} 39. Be7 {[%clk 0:00:36.4]} 39... Bg5 {[%clk 0:00:29.1]} 40. Kd3
{[%clk 0:00:32]} 40... Bh4 {[%clk 0:00:28.1]} 41. c4 {[%clk 0:00:31.6]} 41...
Bg5 {[%clk 0:00:28.1]} 42. Ke2 {[%clk 0:00:31.7]} 42... Bh4 {[%clk 0:00:28]} 43.
Kf1 {[%clk 0:00:31.9]} 43... Kd7 {[%clk 0:00:25.8]} 44. Ba3 {[%clk 0:00:31.6]}
44... Bg5 {[%clk 0:00:22.9]} 45. Kg2 {[%clk 0:00:31]} 45... Ke6 {[%clk
0:00:20.5]} 46. c5 {[%clk 0:00:25.1]} 46... Be3 {[%clk 0:00:19.5]} 47. c6 {[%clk
0:00:24.6]} 47... Bb6 {[%clk 0:00:14.3]} 48. Kg3 {[%clk 0:00:24.8]} 48... Bd4
{[%clk 0:00:14.3]} 49. Kg4 {[%clk 0:00:24.9]} 49... Be3 {[%clk 0:00:13.4]} 50.
Bb4 {[%clk 0:00:23.8]} 50... Bc1 {[%clk 0:00:12.3]} 51. c7 {[%clk 0:00:20.4]}
51... Kd7 {[%clk 0:00:12.5]} 52. Kf5 {[%clk 0:00:20.7]} 52... Bg5 {[%clk
0:00:10.1]} 53. Be7 {[%clk 0:00:19]} 53... Kxc7 {[%clk 0:00:09.8]} 54. Bxf6
{[%clk 0:00:19.3]} 54... Bd2 {[%clk 0:00:07.1]} 55. Bxe5+ {[%clk 0:00:19.4]}
55... Kd7 {[%clk 0:00:08]} 56. Bd4 {[%clk 0:00:19.4]} 56... Ke7 {[%clk 0:00:08]}
57. Bc5+ {[%clk 0:00:19.1]} 57... Kf7 {[%clk 0:00:08.2]} 58. e5 {[%clk 0:00:20]}
58... Bc3 {[%clk 0:00:08.4]} 59. e6+ {[%clk 0:00:20.9]} 59... Ke8 {[%clk
0:00:08.7]} 60. Ke4 {[%clk 0:00:21.1]} 60... Bf6 {[%clk 0:00:08.5]} 61. f4
{[%clk 0:00:21.5]} 61... Bh4 {[%clk 0:00:08.7]} 62. f5 {[%clk 0:00:21.7]} 62...
Bf6 {[%clk 0:00:08.1]} 63. Kd5 {[%clk 0:00:22.1]} 63... Bd8 {[%clk 0:00:07.5]}
64. Bd4 {[%clk 0:00:22.4]} 64... Bg5 {[%clk 0:00:06.6]} 65. f6 {[%clk
0:00:22.7]} 65... Bh4 {[%clk 0:00:06.5]} 66. f7+ {[%clk 0:00:23.1]} 66... Kf8
{[%clk 0:00:07]} 67. h6 {[%clk 0:00:21.3]} 67... Be7 {[%clk 0:00:07.2]} 68. Bg7#
{[%clk 0:00:21.2]} 1-0

[Event "*** SCC Grand Prix: Titled Tuesday Blitz"]
[Site "Chess.com"]
[Date "2020.09.29"]
[Round "9"]
[White "ORS1984"]
[Black "aloe_normansen"]
[Result "0-1"]
[WhiteElo "2495"]
[BlackElo "2370"]
[TimeControl "180+1"]
[EndTime "11:45:10 PDT"]
[Termination "aloe_normansen won on time"]

1. e4 {[%clk 0:03:00.9]} 1... c5 {[%clk 0:03:00]} 2. Nf3 {[%clk 0:03:00.9]} 2...
d6 {[%clk 0:03:00.3]} 3. d4 {[%clk 0:03:01.4]} 3... cxd4 {[%clk 0:03:01.2]} 4.
Qxd4 {[%clk 0:03:01.4]} 4... Nc6 {[%clk 0:03:00.8]} 5. Qe3 {[%clk 0:03:01.7]}
5... Nf6 {[%clk 0:03:00.2]} 6. Be2 {[%clk 0:03:00.5]} 6... e6 {[%clk 0:02:50.3]}
7. c4 {[%clk 0:02:58]} 7... Be7 {[%clk 0:02:48.1]} 8. O-O {[%clk 0:02:57.3]}
8... O-O {[%clk 0:02:35.1]} 9. h3 {[%clk 0:02:57.2]} 9... Nb4 {[%clk 0:02:32.7]}
10. Na3 {[%clk 0:02:53.4]} 10... Bd7 {[%clk 0:02:29.8]} 11. Rd1 {[%clk
0:02:52.4]} 11... Qc7 {[%clk 0:02:23.3]} 12. Bd2 {[%clk 0:02:44.3]} 12... a5
{[%clk 0:02:22.2]} 13. Nd4 {[%clk 0:02:29.8]} 13... Rac8 {[%clk 0:02:09.2]} 14.
Rdc1 {[%clk 0:02:24.5]} 14... Bc6 {[%clk 0:02:02.7]} 15. Nab5 {[%clk 0:02:21.7]}
15... Qb8 {[%clk 0:01:57.8]} 16. a3 {[%clk 0:01:24]} 16... Na6 {[%clk
0:01:43.6]} 17. Na7 {[%clk 0:01:18.5]} 17... Nc5 {[%clk 0:00:54.1]} 18. Nxc8
{[%clk 0:01:15.7]} 18... Rxc8 {[%clk 0:00:55]} 19. Nxc6 {[%clk 0:01:15.5]} 19...
bxc6 {[%clk 0:00:54.7]} 20. e5 {[%clk 0:01:02.9]} 20... dxe5 {[%clk 0:00:52.2]}
21. b4 {[%clk 0:01:02.4]} 21... Nce4 {[%clk 0:00:47.9]} 22. Rab1 {[%clk
0:00:57]} 22... Qc7 {[%clk 0:00:44.7]} 23. Be1 {[%clk 0:00:56.2]} 23... axb4
{[%clk 0:00:36.1]} 24. axb4 {[%clk 0:00:55.4]} 24... h6 {[%clk 0:00:34.6]} 25.
b5 {[%clk 0:00:44.5]} 25... Bc5 {[%clk 0:00:29]} 26. Qf3 {[%clk 0:00:27.5]}
26... Ng5 {[%clk 0:00:29.1]} 27. Qb3 {[%clk 0:00:24.7]} 27... Nfe4 {[%clk
0:00:24.8]} 28. Bd3 {[%clk 0:00:15.7]} 28... Nd6 {[%clk 0:00:17.9]} 29. h4
{[%clk 0:00:15]} 29... Nh7 {[%clk 0:00:17.8]} 30. Qc2 {[%clk 0:00:14.2]} 30...
f5 {[%clk 0:00:17.4]} 31. Bb4 {[%clk 0:00:11.2]} 31... e4 {[%clk 0:00:17.3]} 32.
Bf1 {[%clk 0:00:10.7]} 32... Bxb4 {[%clk 0:00:15.4]} 33. Rxb4 {[%clk 0:00:10.7]}
33... c5 {[%clk 0:00:15.9]} 34. Rb2 {[%clk 0:00:10]} 34... e5 {[%clk 0:00:16.2]}
35. Ra2 {[%clk 0:00:09.9]} 35... Nf6 {[%clk 0:00:16.3]} 36. Rca1 {[%clk
0:00:10]} 36... Rb8 {[%clk 0:00:16.3]} 37. Ra7 {[%clk 0:00:09.5]} 37... Rb7
{[%clk 0:00:16.8]} 38. Ra8+ {[%clk 0:00:09.8]} 38... Kh7 {[%clk 0:00:16.4]} 39.
Qa2 {[%clk 0:00:06.2]} 39... f4 {[%clk 0:00:15]} 40. Qa5 {[%clk 0:00:05.8]}
40... Qd7 {[%clk 0:00:14.4]} 41. Qd8 {[%clk 0:00:06]} 41... Qf7 {[%clk
0:00:11.4]} 42. Qxd6 {[%clk 0:00:04.6]} 42... e3 {[%clk 0:00:11.2]} 43. Qxe5
{[%clk 0:00:04]} 43... exf2+ {[%clk 0:00:11.4]} 44. Kxf2 {[%clk 0:00:03.6]}
44... Ng4+ {[%clk 0:00:11.6]} 45. Kg1 {[%clk 0:00:02.6]} 45... Nxe5 {[%clk
0:00:12.5]} 46. Rd8 {[%clk 0:00:01.8]} 46... Ng4 {[%clk 0:00:11.7]} 47. Raa8
{[%clk 0:00:02.7]} 47... f3 {[%clk 0:00:11.2]} 48. h5 {[%clk 0:00:03]} 48... f2+
{[%clk 0:00:10.4]} 49. Kh1 {[%clk 0:00:02.8]} 49... g5 {[%clk 0:00:10.1]} 50.
Rh8+ {[%clk 0:00:01.9]} 50... Kg7 {[%clk 0:00:10.3]} 51. g3 {[%clk 0:00:02.8]}
51... Qf3+ {[%clk 0:00:09.2]} 52. Bg2 {[%clk 0:00:01.7]} 52... Qd1+ {[%clk
0:00:09.4]} 0-1